[Event "Titled Tuesday Blitz May 31 Early 2022"]
[White "Alinasab, Mobina"]
[Black "Kamsky, Gata"]
[WhiteFideId "12528897"]
[BlackFideId "2000024"]
[WhiteElo "2031"]
[BlackElo "2645"]
[Result "0-1"]
[Round "11"]
[TimeControl "180+1"]
[Date "2022.05.31"]
[WhiteClock "0:00:05"]
[BlackClock "0:00:35"]

1. e4 {[%clk 0:03:00]}  c5 {[%clk 0:02:54]} 2. Nf3 {[%clk 0:02:58]}  Nc6 {[%clk 0:02:54]} 3. d4 {[%clk 0:02:59]}  cxd4 {[%clk 0:02:53]} 4. Nxd4 {[%clk 0:03:00]}  Qb6 {[%clk 0:02:52]} 5. Nb3 {[%clk 0:02:59]}  Nf6 {[%clk 0:02:52]} 6. Nc3 {[%clk 0:02:59]}  e6 {[%clk 0:02:53]} 7. g3 {[%clk 0:02:59]}  a6 {[%clk 0:02:52]} 8. Bg2 {[%clk 0:02:59]}  Qc7 {[%clk 0:02:52]} 9. O-O {[%clk 0:02:59]}  b5 {[%clk 0:02:52]} 10. Re1 {[%clk 0:02:58]}  d6 {[%clk 0:02:49]} 11. Nd4 {[%clk 0:02:45]}  Nxd4 {[%clk 0:02:43]} 12. Qxd4 {[%clk 0:02:43]}  Bb7 {[%clk 0:02:43]} 13. a4 {[%clk 0:02:40]}  bxa4 {[%clk 0:02:16]} 14. Rxa4 {[%clk 0:02:41]}  Be7 {[%clk 0:02:01]} 15. Rc4 {[%clk 0:02:10]}  Qd7 {[%clk 0:01:49]} 16. Bg5 {[%clk 0:01:57]}  Rb8 {[%clk 0:01:31]} 17. Rd1 {[%clk 0:01:20]}  h6 {[%clk 0:01:14]} 18. Bc1 {[%clk 0:01:07]}  e5 {[%clk 0:01:12]} 19. Qb6 {[%clk 0:00:23]}  O-O {[%clk 0:01:11]} 20. Qe3 {[%clk 0:00:17]}  Rfc8 {[%clk 0:01:08]} 21. Rxc8+ {[%clk 0:00:17]}  Qxc8 {[%clk 0:01:07]} 22. b3 {[%clk 0:00:17]}  Qc7 {[%clk 0:01:00]} 23. Bb2 {[%clk 0:00:16]}  Rc8 {[%clk 0:01:00]} 24. Bh3 {[%clk 0:00:16]}  Rd8 {[%clk 0:00:58]} 25. Bg2 {[%clk 0:00:16]}  Bc6 {[%clk 0:00:52]} 26. Rd2 {[%clk 0:00:16]}  Qb7 {[%clk 0:00:52]} 27. Qd3 {[%clk 0:00:15]}  g6 {[%clk 0:00:49]} 28. Nd5 {[%clk 0:00:15]}  Nxd5 {[%clk 0:00:46]} 29. exd5 {[%clk 0:00:16]}  Bb5 {[%clk 0:00:46]} 30. c4 {[%clk 0:00:16]}  Bd7 {[%clk 0:00:46]} 31. Ba3 {[%clk 0:00:09]}  Rb8 {[%clk 0:00:44]} 32. b4 {[%clk 0:00:09]}  Qc8 {[%clk 0:00:43]} 33. Qe3 {[%clk 0:00:07]}  Bf8 {[%clk 0:00:42]} 34. c5 {[%clk 0:00:07]}  Bb5 {[%clk 0:00:41]} 35. Rc2 {[%clk 0:00:06]}  Qg4 {[%clk 0:00:39]} 36. Bf3 {[%clk 0:00:05]}  Qf5 {[%clk 0:00:39]} 37. Be4 {[%clk 0:00:05]}  Qh3 {[%clk 0:00:38]} 38. Bg2 {[%clk 0:00:05]}  Qg4 {[%clk 0:00:37]} 39. Bf3 {[%clk 0:00:05]}  Qh3 {[%clk 0:00:36]} 40. c6 {[%clk 0:00:05]}  Qf1# {[%clk 0:00:35]} 0-1


[Site "https://www.chess.com"]

[Event "Titled Tuesday Blitz May 31 Early 2022"]
[White "Andreikin, Dmitry"]
[Black "Bortnyk, Olexandr"]
[WhiteFideId "4158814"]
[BlackFideId "14120828"]
[WhiteElo "2736"]
[BlackElo "2723"]
[Result "1/2-1/2"]
[Round "11"]
[TimeControl "180+1"]
[Date "2022.05.31"]
[WhiteClock "0:00:11"]
[BlackClock "0:00:05"]

1. d4 {[%clk 0:03:00]}  d6 {[%clk 0:02:59]} 2. Nf3 {[%clk 0:02:56]}  Nf6 {[%clk 0:02:57]} 3. c4 {[%clk 0:02:55]}  g6 {[%clk 0:02:57]} 4. Nc3 {[%clk 0:02:54]}  Bf5 {[%clk 0:02:58]} 5. g3 {[%clk 0:02:53]}  Bg7 {[%clk 0:02:58]} 6. Bg2 {[%clk 0:02:53]}  O-O {[%clk 0:02:58]} 7. O-O {[%clk 0:02:54]}  Ne4 {[%clk 0:02:58]} 8. Nd5 {[%clk 0:02:47]}  c6 {[%clk 0:02:54]} 9. Ne3 {[%clk 0:02:47]}  Be6 {[%clk 0:02:54]} 10. b3 {[%clk 0:02:40]}  f5 {[%clk 0:02:54]} 11. Bb2 {[%clk 0:02:31]}  Nd7 {[%clk 0:02:53]} 12. Rb1 {[%clk 0:02:23]}  d5 {[%clk 0:02:49]} 13. cxd5 {[%clk 0:02:21]}  cxd5 {[%clk 0:02:50]} 14. Ne5 {[%clk 0:02:21]}  Nxe5 {[%clk 0:02:45]} 15. dxe5 {[%clk 0:02:21]}  f4 {[%clk 0:02:43]} 16. Nc2 {[%clk 0:02:15]}  fxg3 {[%clk 0:02:23]} 17. hxg3 {[%clk 0:02:16]}  Qb6 {[%clk 0:02:20]} 18. Qd4 {[%clk 0:01:31]}  Rfc8 {[%clk 0:01:34]} 19. Rbc1 {[%clk 0:01:30]}  Qxd4 {[%clk 0:01:23]} 20. Bxd4 {[%clk 0:01:31]}  a5 {[%clk 0:01:11]} 21. Na3 {[%clk 0:01:23]}  a4 {[%clk 0:00:59]} 22. Nb5 {[%clk 0:01:18]}  axb3 {[%clk 0:00:49]} 23. Nc7 {[%clk 0:01:11]}  Nd2 {[%clk 0:00:34]} 24. Nxa8 {[%clk 0:01:06]}  Rxa8 {[%clk 0:00:35]} 25. axb3 {[%clk 0:00:36]}  Nxf1 {[%clk 0:00:35]} 26. Kxf1 {[%clk 0:00:36]}  Ra3 {[%clk 0:00:32]} 27. f4 {[%clk 0:00:31]}  Rxb3 {[%clk 0:00:31]} 28. Rc7 {[%clk 0:00:31]}  Bf8 {[%clk 0:00:27]} 29. Kf2 {[%clk 0:00:27]}  Kf7 {[%clk 0:00:25]} 30. Rc5 {[%clk 0:00:24]}  Rb4 {[%clk 0:00:20]} 31. e3 {[%clk 0:00:22]}  b6 {[%clk 0:00:18]} 32. Rc6 {[%clk 0:00:22]}  b5 {[%clk 0:00:15]} 33. Rb6 {[%clk 0:00:22]}  Rb1 {[%clk 0:00:12]} 34. Bf1 {[%clk 0:00:18]}  b4 {[%clk 0:00:10]} 35. Bd3 {[%clk 0:00:18]}  Rb3 {[%clk 0:00:09]} 36. Bc2 {[%clk 0:00:17]}  Ra3 {[%clk 0:00:10]} 37. Rxb4 {[%clk 0:00:17]}  Ra2 {[%clk 0:00:10]} 38. Rb2 {[%clk 0:00:16]}  Rxb2 {[%clk 0:00:10]} 39. Bxb2 {[%clk 0:00:17]}  Bf5 {[%clk 0:00:10]} 40. Ba4 {[%clk 0:00:14]}  e6 {[%clk 0:00:09]} 41. Bd4 {[%clk 0:00:14]}  h5 {[%clk 0:00:08]} 42. Bb5 {[%clk 0:00:14]}  Bb4 {[%clk 0:00:06]} 43. Ba4 {[%clk 0:00:14]}  Ke7 {[%clk 0:00:06]} 44. Bb5 {[%clk 0:00:14]}  Kf7 {[%clk 0:00:06]} 45. Ba4 {[%clk 0:00:14]}  Be7 {[%clk 0:00:06]} 46. Bb5 {[%clk 0:00:14]}  g5 {[%clk 0:00:06]} 47. Be2 {[%clk 0:00:12]}  Kg6 {[%clk 0:00:06]} 48. Bf3 {[%clk 0:00:12]}  g4 {[%clk 0:00:06]} 49. Bg2 {[%clk 0:00:11]}  h4 {[%clk 0:00:06]} 50. gxh4 {[%clk 0:00:11]}  Bxh4+ {[%clk 0:00:07]} 51. Ke2 {[%clk 0:00:11]}  Be4 {[%clk 0:00:07]} 52. Bxe4+ {[%clk 0:00:09]}  dxe4 {[%clk 0:00:08]} 53. Kf1 {[%clk 0:00:09]}  Kf5 {[%clk 0:00:06]} 54. Kg2 {[%clk 0:00:09]}  Be1 {[%clk 0:00:06]} 55. Kf1 {[%clk 0:00:10]}  Ba5 {[%clk 0:00:05]} 56. Kg2 {[%clk 0:00:10]}  Bb4 {[%clk 0:00:05]} 57. Kg3 {[%clk 0:00:09]}  Be1+ {[%clk 0:00:05]} 58. Kg2 {[%clk 0:00:10]}  g3 {[%clk 0:00:03]} 59. Kh3 {[%clk 0:00:10]}  Bf2 {[%clk 0:00:04]} 60. Bc5 {[%clk 0:00:10]}  Kg6 {[%clk 0:00:04]} 61. Bd4 {[%clk 0:00:10]}  Kf7 {[%clk 0:00:05]} 62. Bc5 {[%clk 0:00:09]}  Ke8 {[%clk 0:00:05]} 63. Kg2 {[%clk 0:00:08]}  Kd7 {[%clk 0:00:05]} 64. Bb6 {[%clk 0:00:08]}  Ke7 {[%clk 0:00:05]} 65. Bc5+ {[%clk 0:00:08]}  Kd8 {[%clk 0:00:05]} 66. Bb6+ {[%clk 0:00:08]}  Kd7 {[%clk 0:00:05]} 67. Bc5 {[%clk 0:00:08]}  Kc6 {[%clk 0:00:04]} 68. Bd4 {[%clk 0:00:08]}  Kd5 {[%clk 0:00:04]} 69. Bb6 {[%clk 0:00:09]}  Be1 {[%clk 0:00:03]} 70. Bd4 {[%clk 0:00:08]}  Kc6 {[%clk 0:00:03]} 71. Ba7 {[%clk 0:00:08]}  Kd7 {[%clk 0:00:03]} 72. Bd4 {[%clk 0:00:08]}  Ke8 {[%clk 0:00:04]} 73. Bc5 {[%clk 0:00:08]}  Kf7 {[%clk 0:00:04]} 74. Bd4 {[%clk 0:00:09]}  Kg6 {[%clk 0:00:04]} 75. Kh3 {[%clk 0:00:09]}  Bf2 {[%clk 0:00:05]} 76. Bc5 {[%clk 0:00:09]}  Kf5 {[%clk 0:00:05]} 77. Bd4 {[%clk 0:00:09]}  Be1 {[%clk 0:00:06]} 78. Bc5 {[%clk 0:00:09]}  Kg6 {[%clk 0:00:06]} 79. Bd4 {[%clk 0:00:09]}  Kf7 {[%clk 0:00:06]} 80. Bc5 {[%clk 0:00:10]}  Ke8 {[%clk 0:00:06]} 81. Bd4 {[%clk 0:00:10]}  Kd8 {[%clk 0:00:07]} 82. Bc5 {[%clk 0:00:10]}  Kd7 {[%clk 0:00:07]} 83. Bd4 {[%clk 0:00:11]}  Kc6 {[%clk 0:00:08]} 84. Kg2 {[%clk 0:00:11]}  Kb5 {[%clk 0:00:06]} 85. Ba7 {[%clk 0:00:10]}  Kc6 {[%clk 0:00:06]} 86. Bd4 {[%clk 0:00:11]}  Kd5 {[%clk 0:00:06]} 87. Bb6 {[%clk 0:00:11]}  Kc6 {[%clk 0:00:05]} 88. Bd4 {[%clk 0:00:11]} 1/2-1/2


[Site "https://www.chess.com"]

[Event "Titled Tuesday Blitz May 31 Early 2022"]
[White "Atakhan, Abtin"]
[Black "Aravindh, Chithambaram VR."]
[WhiteFideId "22502203"]
[BlackFideId "5072786"]
[WhiteElo "2094"]
[BlackElo "2561"]
[Result "0-1"]
[Round "11"]
[TimeControl "180+1"]
[Date "2022.05.31"]
[WhiteClock "0:00:06"]
[BlackClock "0:00:45"]

1. d4 {[%clk 0:03:00]}  d6 {[%clk 0:02:59]} 2. Nf3 {[%clk 0:03:00]}  Nf6 {[%clk 0:02:59]} 3. g3 {[%clk 0:02:59]}  b5 {[%clk 0:02:57]} 4. Bg2 {[%clk 0:02:59]}  Bb7 {[%clk 0:02:57]} 5. O-O {[%clk 0:02:58]}  Nbd7 {[%clk 0:02:55]} 6. c3 {[%clk 0:02:59]}  g6 {[%clk 0:02:55]} 7. a4 {[%clk 0:02:58]}  a6 {[%clk 0:02:55]} 8. Na3 {[%clk 0:02:58]}  Bg7 {[%clk 0:02:48]} 9. Bf4 {[%clk 0:02:49]}  Rb8 {[%clk 0:02:47]} 10. Re1 {[%clk 0:02:30]}  O-O {[%clk 0:02:44]} 11. Qc1 {[%clk 0:02:31]}  bxa4 {[%clk 0:02:35]} 12. Nc2 {[%clk 0:02:25]}  c5 {[%clk 0:02:12]} 13. Rxa4 {[%clk 0:02:22]}  cxd4 {[%clk 0:02:12]} 14. cxd4 {[%clk 0:02:19]}  Qc7 {[%clk 0:02:12]} 15. Qd1 {[%clk 0:01:54]}  Nb6 {[%clk 0:01:58]} 16. Ra1 {[%clk 0:01:49]}  Rfc8 {[%clk 0:01:55]} 17. Nb4 {[%clk 0:01:46]}  Nbd5 {[%clk 0:01:45]} 18. Nxa6 {[%clk 0:01:30]}  Bxa6 {[%clk 0:01:43]} 19. Rxa6 {[%clk 0:01:30]}  Nxf4 {[%clk 0:01:43]} 20. gxf4 {[%clk 0:01:31]}  Rxb2 {[%clk 0:01:44]} 21. Qd3 {[%clk 0:01:26]}  Nd5 {[%clk 0:01:40]} 22. Qe4 {[%clk 0:01:19]}  e6 {[%clk 0:01:25]} 23. Raa1 {[%clk 0:01:11]}  Qc2 {[%clk 0:01:16]} 24. Qxc2 {[%clk 0:00:47]}  Rcxc2 {[%clk 0:01:17]} 25. Ra8+ {[%clk 0:00:47]}  Bf8 {[%clk 0:01:17]} 26. e3 {[%clk 0:00:23]}  Rxf2 {[%clk 0:01:16]} 27. Bh1 {[%clk 0:00:23]}  Rfe2 {[%clk 0:01:06]} 28. Ra3 {[%clk 0:00:16]}  Be7 {[%clk 0:00:52]} 29. Kf1 {[%clk 0:00:13]}  Rxe1+ {[%clk 0:00:46]} 30. Kxe1 {[%clk 0:00:06]}  Rb1+ {[%clk 0:00:45]} 0-1


[Site "https://www.chess.com"]

[Event "Titled Tuesday Blitz May 31 Early 2022"]
[White "Bachmann, Axel"]
[Black "Priasmoro, Novendra"]
[WhiteFideId "3700488"]
[BlackFideId "7105029"]
[WhiteElo "2587"]
[BlackElo "2309"]
[Result "1-0"]
[Round "11"]
[TimeControl "180+1"]
[Date "2022.05.31"]
[WhiteClock "0:01:24"]
[BlackClock "0:00:01"]

1. e4 {[%clk 0:02:57]}  e5 {[%clk 0:02:59]} 2. Bc4 {[%clk 0:02:56]}  Nf6 {[%clk 0:02:56]} 3. d3 {[%clk 0:02:55]}  c6 {[%clk 0:02:57]} 4. Nf3 {[%clk 0:02:54]}  d5 {[%clk 0:02:57]} 5. Bb3 {[%clk 0:02:54]}  Bd6 {[%clk 0:02:58]} 6. Nc3 {[%clk 0:02:54]}  O-O {[%clk 0:02:49]} 7. Bg5 {[%clk 0:02:37]}  h6 {[%clk 0:02:36]} 8. Bxf6 {[%clk 0:02:34]}  Qxf6 {[%clk 0:02:37]} 9. exd5 {[%clk 0:02:34]}  Qg6 {[%clk 0:02:37]} 10. Qe2 {[%clk 0:02:27]}  a5 {[%clk 0:01:39]} 11. a3 {[%clk 0:02:21]}  a4 {[%clk 0:01:34]} 12. Ba2 {[%clk 0:02:16]}  b5 {[%clk 0:01:05]} 13. Ne4 {[%clk 0:02:06]}  Bg4 {[%clk 0:00:28]} 14. h3 {[%clk 0:01:55]}  Bxf3 {[%clk 0:00:28]} 15. Qxf3 {[%clk 0:01:56]}  c5 {[%clk 0:00:28]} 16. h4 {[%clk 0:01:46]}  h5 {[%clk 0:00:10]} 17. Rh3 {[%clk 0:01:43]}  Nd7 {[%clk 0:00:05]} 18. Rg3 {[%clk 0:01:37]}  Qh6 {[%clk 0:00:05]} 19. Qf5 {[%clk 0:01:25]}  Rad8 {[%clk 0:00:01]} 20. Rg5 {[%clk 0:01:24]} 1-0


[Site "https://www.chess.com"]

[Event "Titled Tuesday Blitz May 31 Early 2022"]
[White "Barp, Alberto"]
[Black "Harsha Bharathakoti"]
[WhiteFideId "872555"]
[BlackFideId "5078776"]
[WhiteElo "2229"]
[BlackElo "2575"]
[Result "0-1"]
[Round "11"]
[TimeControl "180+1"]
[Date "2022.05.31"]
[WhiteClock "0:00:09"]
[BlackClock "0:00:11"]

1. d4 {[%clk 0:03:00]}  Nf6 {[%clk 0:03:00]} 2. c4 {[%clk 0:02:53]}  g6 {[%clk 0:03:00]} 3. Nf3 {[%clk 0:02:52]}  Bg7 {[%clk 0:03:00]} 4. Nc3 {[%clk 0:02:52]}  O-O {[%clk 0:03:00]} 5. Bg5 {[%clk 0:02:52]}  c5 {[%clk 0:02:55]} 6. e3 {[%clk 0:02:49]}  cxd4 {[%clk 0:02:54]} 7. exd4 {[%clk 0:02:49]}  d5 {[%clk 0:02:50]} 8. cxd5 {[%clk 0:02:45]}  Nxd5 {[%clk 0:02:50]} 9. Bc4 {[%clk 0:02:45]}  Nxc3 {[%clk 0:02:38]} 10. bxc3 {[%clk 0:02:46]}  Nc6 {[%clk 0:02:39]} 11. O-O {[%clk 0:02:45]}  Na5 {[%clk 0:02:39]} 12. Bd3 {[%clk 0:02:43]}  Be6 {[%clk 0:02:38]} 13. Qe2 {[%clk 0:02:35]}  Re8 {[%clk 0:02:33]} 14. Rac1 {[%clk 0:02:34]}  Bd5 {[%clk 0:02:17]} 15. Nd2 {[%clk 0:02:16]}  Nc6 {[%clk 0:01:57]} 16. Nb3 {[%clk 0:02:07]}  Bxg2 {[%clk 0:01:53]} 17. Kxg2 {[%clk 0:02:03]}  Qd5+ {[%clk 0:01:53]} 18. Be4 {[%clk 0:02:03]}  Qxg5+ {[%clk 0:01:54]} 19. Kh1 {[%clk 0:02:04]}  Rac8 {[%clk 0:01:29]} 20. f4 {[%clk 0:01:58]}  Qh4 {[%clk 0:01:28]} 21. f5 {[%clk 0:01:58]}  e6 {[%clk 0:00:58]} 22. fxg6 {[%clk 0:01:42]}  hxg6 {[%clk 0:00:59]} 23. Qg2 {[%clk 0:01:37]}  Ne7 {[%clk 0:00:52]} 24. Bxb7 {[%clk 0:01:35]}  Rc7 {[%clk 0:00:53]} 25. Be4 {[%clk 0:01:31]}  Nf5 {[%clk 0:00:52]} 26. Bxf5 {[%clk 0:01:22]}  exf5 {[%clk 0:00:53]} 27. Nc5 {[%clk 0:01:19]}  Rce7 {[%clk 0:00:43]} 28. Rc2 {[%clk 0:01:19]}  Re3 {[%clk 0:00:43]} 29. Qf2 {[%clk 0:01:12]}  Qh5 {[%clk 0:00:32]} 30. Nd7 {[%clk 0:01:10]}  Re2 {[%clk 0:00:31]} 31. Rxe2 {[%clk 0:01:08]}  Rxe2 {[%clk 0:00:32]} 32. Qg3 {[%clk 0:01:07]}  Rxa2 {[%clk 0:00:28]} 33. Ne5 {[%clk 0:00:56]}  Qe2 {[%clk 0:00:28]} 34. Re1 {[%clk 0:00:41]}  Qb2 {[%clk 0:00:19]} 35. Nc6 {[%clk 0:00:29]}  Bf6 {[%clk 0:00:16]} 36. Qh3 {[%clk 0:00:21]}  Kg7 {[%clk 0:00:16]} 37. Ne5 {[%clk 0:00:16]}  Qb7+ {[%clk 0:00:13]} 38. Qf3 {[%clk 0:00:12]}  Qxf3+ {[%clk 0:00:12]} 39. Nxf3 {[%clk 0:00:13]}  Rc2 {[%clk 0:00:12]} 40. Re3 {[%clk 0:00:10]}  a5 {[%clk 0:00:12]} 41. Ne5 {[%clk 0:00:10]}  a4 {[%clk 0:00:11]} 42. Nc4 {[%clk 0:00:10]}  Bxd4 {[%clk 0:00:10]} 43. cxd4 {[%clk 0:00:08]}  Rxc4 {[%clk 0:00:10]} 44. d5 {[%clk 0:00:09]}  Rd4 {[%clk 0:00:11]} 45. Ra3 {[%clk 0:00:09]}  Kf6 {[%clk 0:00:11]} 0-1


[Site "https://www.chess.com"]

[Event "Titled Tuesday Blitz May 31 Early 2022"]
[White "Bodnaruk, Anastasia"]
[Black "Gormally, Daniel W"]
[WhiteFideId "4181751"]
[BlackFideId "406465"]
[WhiteElo "2332"]
[BlackElo "2543"]
[Result "1/2-1/2"]
[Round "11"]
[TimeControl "180+1"]
[Date "2022.06.01"]
[WhiteClock "0:00:07"]
[BlackClock "0:01:01"]

1. e4 {[%clk 0:03:00]}  c5 {[%clk 0:02:58]} 2. Nc3 {[%clk 0:03:00]}  d6 {[%clk 0:02:58]} 3. Nge2 {[%clk 0:03:00]}  Nf6 {[%clk 0:02:57]} 4. d4 {[%clk 0:03:00]}  cxd4 {[%clk 0:02:57]} 5. Nxd4 {[%clk 0:03:00]}  Nc6 {[%clk 0:02:57]} 6. Bc4 {[%clk 0:03:00]}  Qb6 {[%clk 0:02:56]} 7. Nb3 {[%clk 0:03:00]}  e6 {[%clk 0:02:56]} 8. Be3 {[%clk 0:02:59]}  Qc7 {[%clk 0:02:56]} 9. Be2 {[%clk 0:02:49]}  Be7 {[%clk 0:02:52]} 10. f4 {[%clk 0:02:48]}  O-O {[%clk 0:02:50]} 11. Bf3 {[%clk 0:02:46]}  a6 {[%clk 0:02:45]} 12. O-O {[%clk 0:02:43]}  b5 {[%clk 0:02:45]} 13. g4 {[%clk 0:02:42]}  Bb7 {[%clk 0:02:45]} 14. g5 {[%clk 0:02:42]}  Nd7 {[%clk 0:02:46]} 15. Bg2 {[%clk 0:02:41]}  Na5 {[%clk 0:02:42]} 16. Nxa5 {[%clk 0:02:40]}  Qxa5 {[%clk 0:02:42]} 17. Qh5 {[%clk 0:02:35]}  g6 {[%clk 0:02:42]} 18. Qh6 {[%clk 0:02:33]}  Rfe8 {[%clk 0:02:42]} 19. Ne2 {[%clk 0:02:08]}  Bf8 {[%clk 0:02:40]} 20. Qh4 {[%clk 0:02:08]}  Bg7 {[%clk 0:02:38]} 21. c3 {[%clk 0:02:07]}  b4 {[%clk 0:02:37]} 22. Rad1 {[%clk 0:01:59]}  bxc3 {[%clk 0:02:37]} 23. Nxc3 {[%clk 0:01:59]}  Qb4 {[%clk 0:02:32]} 24. Rd2 {[%clk 0:01:52]}  Nc5 {[%clk 0:02:30]} 25. a3 {[%clk 0:01:48]}  Qc4 {[%clk 0:02:30]} 26. Bxc5 {[%clk 0:01:33]}  Qxc5+ {[%clk 0:02:27]} 27. Kh1 {[%clk 0:01:34]}  Rad8 {[%clk 0:02:07]} 28. Rd3 {[%clk 0:01:34]}  a5 {[%clk 0:02:05]} 29. Rh3 {[%clk 0:01:33]}  h5 {[%clk 0:02:02]} 30. gxh6 {[%clk 0:01:33]}  Bd4 {[%clk 0:01:58]} 31. Ne2 {[%clk 0:01:27]}  Bxb2 {[%clk 0:01:51]} 32. Rb3 {[%clk 0:01:23]}  Qc2 {[%clk 0:01:47]} 33. Rxb7 {[%clk 0:01:17]}  Qxe2 {[%clk 0:01:48]} 34. h7+ {[%clk 0:01:15]}  Kh8 {[%clk 0:01:48]} 35. Rxf7 {[%clk 0:01:10]}  Rf8 {[%clk 0:01:37]} 36. e5 {[%clk 0:00:29]}  Rxf7 {[%clk 0:01:30]} 37. Qxd8+ {[%clk 0:00:29]}  Kxh7 {[%clk 0:01:31]} 38. Qxd6 {[%clk 0:00:28]}  Qc4 {[%clk 0:01:25]} 39. h4 {[%clk 0:00:17]}  Rxf4 {[%clk 0:01:00]} 40. Qe7+ {[%clk 0:00:16]}  Kh8 {[%clk 0:01:00]} 41. Qe8+ {[%clk 0:00:07]}  Kg7 {[%clk 0:01:01]} 42. Qe7+ {[%clk 0:00:07]}  Kh8 {[%clk 0:01:01]} 43. Qe8+ {[%clk 0:00:07]}  Kg7 {[%clk 0:01:01]} 44. Qe7+ {[%clk 0:00:07]} 1/2-1/2


[Site "https://www.chess.com"]

[Event "Titled Tuesday Blitz May 31 Early 2022"]
[White "Chen, Qi b"]
[Black "Fiorito, Fabian"]
[WhiteFideId "8614733"]
[BlackFideId "100200"]
[WhiteElo "2432"]
[BlackElo "2395"]
[Result "1-0"]
[Round "11"]
[TimeControl "180+1"]
[Date "2022.06.01"]
[WhiteClock "0:00:22"]
[BlackClock "0:00:05"]

1. d4 {[%clk 0:03:00]}  d5 {[%clk 0:03:00]} 2. c4 {[%clk 0:03:00]}  c6 {[%clk 0:02:59]} 3. Nf3 {[%clk 0:03:00]}  Nf6 {[%clk 0:02:59]} 4. Nc3 {[%clk 0:03:01]}  e6 {[%clk 0:03:00]} 5. g3 {[%clk 0:03:00]}  dxc4 {[%clk 0:02:58]} 6. a4 {[%clk 0:02:58]}  Nbd7 {[%clk 0:02:56]} 7. Bg2 {[%clk 0:02:58]}  c5 {[%clk 0:02:54]} 8. O-O {[%clk 0:02:57]}  Be7 {[%clk 0:02:52]} 9. e4 {[%clk 0:02:50]}  cxd4 {[%clk 0:02:41]} 10. Qxd4 {[%clk 0:02:49]}  Nb6 {[%clk 0:02:34]} 11. Be3 {[%clk 0:01:34]}  Qxd4 {[%clk 0:02:31]} 12. Bxd4 {[%clk 0:01:33]}  O-O {[%clk 0:02:27]} 13. a5 {[%clk 0:01:31]}  Nbd7 {[%clk 0:02:26]} 14. e5 {[%clk 0:01:31]}  Nd5 {[%clk 0:02:25]} 15. Nd2 {[%clk 0:01:27]}  Nxc3 {[%clk 0:00:49]} 16. bxc3 {[%clk 0:01:27]}  a6 {[%clk 0:00:48]} 17. Rfb1 {[%clk 0:01:21]}  Nc5 {[%clk 0:00:47]} 18. Nxc4 {[%clk 0:01:19]}  Rb8 {[%clk 0:00:44]} 19. Nd6 {[%clk 0:01:16]}  Bxd6 {[%clk 0:00:41]} 20. exd6 {[%clk 0:01:17]}  Nd7 {[%clk 0:00:40]} 21. c4 {[%clk 0:01:17]}  e5 {[%clk 0:00:38]} 22. Ba7 {[%clk 0:01:16]}  Ra8 {[%clk 0:00:38]} 23. Be3 {[%clk 0:01:17]}  Rb8 {[%clk 0:00:38]} 24. c5 {[%clk 0:01:14]}  g6 {[%clk 0:00:34]} 25. Ra4 {[%clk 0:01:00]}  f5 {[%clk 0:00:33]} 26. Rab4 {[%clk 0:00:55]}  f4 {[%clk 0:00:28]} 27. Bd5+ {[%clk 0:00:54]}  Kg7 {[%clk 0:00:27]} 28. gxf4 {[%clk 0:00:54]}  exf4 {[%clk 0:00:28]} 29. Bd4+ {[%clk 0:00:54]}  Kh6 {[%clk 0:00:29]} 30. c6 {[%clk 0:00:50]}  bxc6 {[%clk 0:00:28]} 31. Rxb8 {[%clk 0:00:49]}  cxd5 {[%clk 0:00:22]} 32. Ra8 {[%clk 0:00:47]}  Re8 {[%clk 0:00:11]} 33. Rc1 {[%clk 0:00:45]}  Re4 {[%clk 0:00:09]} 34. Bh8 {[%clk 0:00:29]}  Bb7 {[%clk 0:00:06]} 35. Ra7 {[%clk 0:00:29]}  Nc5 {[%clk 0:00:04]} 36. Rxc5 {[%clk 0:00:25]}  f3 {[%clk 0:00:04]} 37. Rc1 {[%clk 0:00:25]}  Bc6 {[%clk 0:00:05]} 38. d7 {[%clk 0:00:22]} 1-0


[Site "https://www.chess.com"]